{"text_format":"1","workbook":"xlsx","n_sheets":4,"sheets":["Estructura líneas de defensa","segunda líneaa Vs Act Asegu"," Mapa de Asegu","Convenciones"],"not_rendered":{"charts":0,"images":1,"macros":1,"external_links":1,"defined_names":6,"comments":2,"pivot_tables":0},"unopened":[],"bounds":{"document_bytes":16777216,"sheet_cells":100000,"rows_first":2000,"rows_last":500,"rows_between":2000,"halvings":0,"cell_chars":16384,"cell_head_chars":4096},"cells_cut":0,"cells_raw":0,"read":"whole","date_system":"1900"}

{"sheet":"Estructura líneas de defensa","index":0,"n_rows":28,"n_cols":5,"rows_kept":28,"cut":false,"hidden":false,"merged":[[27,1,27,4],[6,1,6,3],[1,1,4,1],[1,2,1,3],[2,2,2,3],[3,2,3,3],[4,2,4,3]]}
[]
[null,null,"Nombre del Procedimiento",null,"Código : EC-PR01-FT02"]
[null,null,"AUDITORIA INDEPENDIENTE",null,"Versión: 01"]
[null,null,"Nombre del Formato",null,"Vigencia : 10/03/2022"]
[null,null,"MAPA DE ASEGURAMIENTO",null,"Página 1 de 1"]
[]
[null,"ESTRUCTURA LÍNEAS DE DEFENSA UAECOB",null,null,"Vigencia: 2021"]
[null,"LÍNEA DE DEFENSA","PROCESO INTEGRANTE","ÁREA O GRUPO FUNCIONAL","RESPONSABILIDADES"]
[]
[]
[]
[]
[]
[]
[]
[]
[]
[]
[]
[]
[]
[]
[]
[]
[]
[]
[]
[null,"Nota: Si usted imprime este documento se considera “Copia No Controlada” por lo tanto debe consultar la versión vigente en el sitio oficial de los documentos"]

{"sheet":"segunda líneaa Vs Act Asegu","index":1,"n_rows":40,"n_cols":24,"rows_kept":40,"cut":false,"hidden":false,"merged":[[7,1,8,1],[7,9,7,11],[7,2,8,2],[7,4,8,4],[1,1,4,2],[1,3,1,22],[2,3,2,22],[3,3,3,22],[4,3,4,22],[6,1,6,22],[7,15,7,20],[7,5,8,5],[7,8,8,8],[7,6,8,6],[7,7,8,7],[7,3,8,3]]}
[]
[null,null,null,"Nombre del Procedimiento",null,null,null,null,null,null,null,null,null,null,null,null,null,null,null,null,null,null,null,"Código : EC-PR01-FT02"]
[null,null,null,"AUDITORIA INDEPENDIENTE",null,null,null,null,null,null,null,null,null,null,null,null,null,null,null,null,null,null,null,"Versión:  01"]
[null,null,null,"Nombre del Formato",null,null,null,null,null,null,null,null,null,null,null,null,null,null,null,null,null,null,null,"Vigencia  10/03/2022"]
[null,null,null,"MAPA DE ASEGURAMIENTO",null,null,null,null,null,null,null,null,null,null,null,null,null,null,null,null,null,null,null,"Página  1 de 1"]
[]
[null,"DEFINICIÓN SEGUNDA LÍNEA DE DEFENSA Vs ACTIVIDADES CLAVES DE ÉXITO",null,null,null,null,null,null,null,null,null,null,null,null,null,null,null,null,null,null,null,null,null,"Vigencia: XXXX"]
[null,"No. ","PROCESO","DEPENDENCIA-ÁREA O GRUPO FUNCIONAL","LÍDER DE PROCESO","ASPECTO CLAVE DE ÉXITO\n(Programa, Proyecto, Proceso, Sistema, entre otros)","NIVEL RIESGO ASOCIADO AL ASPECTO CLAVE DE ÉXITO","ÁREA O GRUPO FUNCIONAL","COORDINADOR O RESPONSABLE DEL ÁREA O GRUPO FUNCIONAL","Criterios para la identificación de la segunda línea de defensa",null,null,"Clasificación ","FUNCIONES DE\n ASEGURAMIENTO O ACTIVIDAD DE CONTROL QUE DEBE ADELANTAR, ACTIVIDAD CLAVE DE ÉXITO","Descripción Función de Aseguramiento o Actividad de Control para la evaluación de confianza","CRITERIOS EVALUADORES DE LA FUNCIÓN DE ASEGURAMIENTO",null,null,null,null,null,"NIVEL DE \nCONFIANZA","OBSERVACIÓN","TERCERA LÍNEA DE DEFENSA\n(Oficina de Control Interno o quien haga sus veces) "]
[null,null,null,null,null,null,null,null,null,"¿Pertenece a la Media o Alta Gerencia?","¿Responde ante la Alta Dirección?","¿Realiza actividades de seguimiento?",null,null,null,"Objetivo y Alcance  de la funcion de aseguramiento\n(20%)","Alcance\n(20%)","Metodología\n(20%)","Responsable\n(20%)","Comunicación de resultados \n(20%)","Total"]
[null,1,null,null,null,null,null,null,null,null,null,null,{"$f":"IF(COUNTIF(J10:L10,\"SI\")=3,\"Segunda Línea de Defensa\",IF(COUNTIF(J10:L10,\"SI\")=2,\"Primera Línea de Defensa\",IF(COUNTIF(J10:L10,\"SI\")=1,\"Primera Línea de Defensa\",)))","v":0},null,null,null,null,null,null,null,{"$f":"+(P10*0.2)+(Q10*0.2)+(R10*0.2)+(S10*0.2)+(T10*0.2)","v":0},{"$f":"IF(U10=0,\" \",(IF(U10<3,\"Bajo Aseguramiento\",IF(AND(U10>=3,U10<5),\"Medio Aseguramiento\",IF(U10>=5,\"Alto Aseguramiento\")))))","v":" "},{"$f":"VLOOKUP(V10,Convenciones!$I$3:$K$6,2,0)","v":{"$error":"#N/A"}},{"$f":"VLOOKUP(V10,Convenciones!$I$3:$K$6,3,0)","v":{"$error":"#N/A"}}]
[null,{"$f":"++B10+1","v":2},null,null,null,null,null,null,null,null,null,null,0,null,null,null,null,null,null,null,{"$f":"+(P11*0.2)+(Q11*0.2)+(R11*0.2)+(S11*0.2)+(T11*0.2)","v":0},{"$f":"IF(U11=0,\" \",(IF(U11<3,\"Bajo Aseguramiento\",IF(AND(U11>=3,U11<5),\"Medio Aseguramiento\",IF(U11>=5,\"Alto Aseguramiento\")))))","v":" "},{"$f":"VLOOKUP(V11,Convenciones!$I$3:$K$6,2,0)","v":{"$error":"#N/A"}},{"$f":"VLOOKUP(V11,Convenciones!$I$3:$K$6,3,0)","v":{"$error":"#N/A"}}]
[null,{"$f":"++B11+1","v":3},null,null,null,null,null,null,null,null,null,null,0,null,null,null,null,null,null,null,0," ",{"$f":"VLOOKUP(V12,Convenciones!$I$3:$K$6,2,0)","v":{"$error":"#N/A"}},{"$f":"VLOOKUP(V12,Convenciones!$I$3:$K$6,3,0)","v":{"$error":"#N/A"}}]
[null,4,null,null,null,null,null,null,null,null,null,null,0,null,null,null,null,null,null,null,0," ",{"$f":"VLOOKUP(V13,Convenciones!$I$3:$K$6,2,0)","v":{"$error":"#N/A"}},{"$f":"VLOOKUP(V13,Convenciones!$I$3:$K$6,3,0)","v":{"$error":"#N/A"}}]
[null,5,null,null,null,null,null,null,null,null,null,null,0,null,null,null,null,null,null,null,0," ",{"$f":"VLOOKUP(V14,Convenciones!$I$3:$K$6,2,0)","v":{"$error":"#N/A"}},{"$f":"VLOOKUP(V14,Convenciones!$I$3:$K$6,3,0)","v":{"$error":"#N/A"}}]
[null,6,null,null,null,null,null,null,null,null,null,null,0,null,null,null,null,null,null,null,0," ",{"$f":"VLOOKUP(V15,Convenciones!$I$3:$K$6,2,0)","v":{"$error":"#N/A"}},{"$f":"VLOOKUP(V15,Convenciones!$I$3:$K$6,3,0)","v":{"$error":"#N/A"}}]
[null,7,null,null,null,null,null,null,null,null,null,null,0,null,null,null,null,null,null,null,0," ",{"$f":"VLOOKUP(V16,Convenciones!$I$3:$K$6,2,0)","v":{"$error":"#N/A"}},{"$f":"VLOOKUP(V16,Convenciones!$I$3:$K$6,3,0)","v":{"$error":"#N/A"}}]
[null,8,null,null,null,null,null,null,null,null,null,null,0,null,null,null,null,null,null,null,0," ",{"$f":"VLOOKUP(V17,Convenciones!$I$3:$K$6,2,0)","v":{"$error":"#N/A"}},{"$f":"VLOOKUP(V17,Convenciones!$I$3:$K$6,3,0)","v":{"$error":"#N/A"}}]
[null,9,null,null,null,null,null,null,null,null,null,null,0,null,null,null,null,null,null,null,0," ",{"$f":"VLOOKUP(V18,Convenciones!$I$3:$K$6,2,0)","v":{"$error":"#N/A"}},{"$f":"VLOOKUP(V18,Convenciones!$I$3:$K$6,3,0)","v":{"$error":"#N/A"}}]
[null,10,null,null,null,null,null,null,null,null,null,null,0,null,null,null,null,null,null,null,0," ",{"$f":"VLOOKUP(V19,Convenciones!$I$3:$K$6,2,0)","v":{"$error":"#N/A"}},{"$f":"VLOOKUP(V19,Convenciones!$I$3:$K$6,3,0)","v":{"$error":"#N/A"}}]
[null,11,null,null,null,null,null,null,null,null,null,null,0,null,null,null,null,null,null,null,0," ",{"$f":"VLOOKUP(V20,Convenciones!$I$3:$K$6,2,0)","v":{"$error":"#N/A"}},{"$f":"VLOOKUP(V20,Convenciones!$I$3:$K$6,3,0)","v":{"$error":"#N/A"}}]
[null,12,null,null,null,null,null,null,null,null,null,null,0,null,null,null,null,null,null,null,0," ",{"$f":"VLOOKUP(V21,Convenciones!$I$3:$K$6,2,0)","v":{"$error":"#N/A"}},{"$f":"VLOOKUP(V21,Convenciones!$I$3:$K$6,3,0)","v":{"$error":"#N/A"}}]
[null,13,null,null,null,null,null,null,null,null,null,null,0,null,null,null,null,null,null,null,0," ",{"$f":"VLOOKUP(V22,Convenciones!$I$3:$K$6,2,0)","v":{"$error":"#N/A"}},{"$f":"VLOOKUP(V22,Convenciones!$I$3:$K$6,3,0)","v":{"$error":"#N/A"}}]
[null,14,null,null,null,null,null,null,null,null,null,null,0,null,null,null,null,null,null,null,0," ",{"$f":"VLOOKUP(V23,Convenciones!$I$3:$K$6,2,0)","v":{"$error":"#N/A"}},{"$f":"VLOOKUP(V23,Convenciones!$I$3:$K$6,3,0)","v":{"$error":"#N/A"}}]
[null,15,null,null,null,null,null,null,null,null,null,null,0,null,null,null,null,null,null,null,0," ",{"$f":"VLOOKUP(V24,Convenciones!$I$3:$K$6,2,0)","v":{"$error":"#N/A"}},{"$f":"VLOOKUP(V24,Convenciones!$I$3:$K$6,3,0)","v":{"$error":"#N/A"}}]
[null,16,null,null,null,null,null,null,null,null,null,null,0,null,null,null,null,null,null,null,0," ",{"$f":"VLOOKUP(V25,Convenciones!$I$3:$K$6,2,0)","v":{"$error":"#N/A"}},{"$f":"VLOOKUP(V25,Convenciones!$I$3:$K$6,3,0)","v":{"$error":"#N/A"}}]
[null,17,null,null,null,null,null,null,null,null,null,null,0,null,null,null,null,null,null,null,0," ",{"$f":"VLOOKUP(V26,Convenciones!$I$3:$K$6,2,0)","v":{"$error":"#N/A"}},{"$f":"VLOOKUP(V26,Convenciones!$I$3:$K$6,3,0)","v":{"$error":"#N/A"}}]
[null,18,null,null,null,null,null,null,null,null,null,null,0,null,null,null,null,null,null,null,0," ",{"$f":"VLOOKUP(V27,Convenciones!$I$3:$K$6,2,0)","v":{"$error":"#N/A"}},{"$f":"VLOOKUP(V27,Convenciones!$I$3:$K$6,3,0)","v":{"$error":"#N/A"}}]
[null,19,null,null,null,null,null,null,null,null,null,null,0,null,null,null,null,null,null,null,0," ",{"$f":"VLOOKUP(V28,Convenciones!$I$3:$K$6,2,0)","v":{"$error":"#N/A"}},{"$f":"VLOOKUP(V28,Convenciones!$I$3:$K$6,3,0)","v":{"$error":"#N/A"}}]
[null,20,null,null,null,null,null,null,null,null,null,null,0,null,null,null,null,null,null,null,0," ",{"$f":"VLOOKUP(V29,Convenciones!$I$3:$K$6,2,0)","v":{"$error":"#N/A"}},{"$f":"VLOOKUP(V29,Convenciones!$I$3:$K$6,3,0)","v":{"$error":"#N/A"}}]
[null,21,null,null,null,null,null,null,null,null,null,null,0,null,null,null,null,null,null,null,0," ",{"$f":"VLOOKUP(V30,Convenciones!$I$3:$K$6,2,0)","v":{"$error":"#N/A"}},{"$f":"VLOOKUP(V30,Convenciones!$I$3:$K$6,3,0)","v":{"$error":"#N/A"}}]
[null,22,null,null,null,null,null,null,null,null,null,null,0,null,null,null,null,null,null,null,0," ",{"$f":"VLOOKUP(V31,Convenciones!$I$3:$K$6,2,0)","v":{"$error":"#N/A"}},{"$f":"VLOOKUP(V31,Convenciones!$I$3:$K$6,3,0)","v":{"$error":"#N/A"}}]
[null,23,null,null,null,null,null,null,null,null,null,null,0,null,null,null,null,null,null,null,0," ",{"$f":"VLOOKUP(V32,Convenciones!$I$3:$K$6,2,0)","v":{"$error":"#N/A"}},"."]
[null,24,null,null,null,null,null,null,null,null,null,null,0,null,null,null,null,null,null,null,0," ",{"$f":"VLOOKUP(V33,Convenciones!$I$3:$K$6,2,0)","v":{"$error":"#N/A"}},{"$f":"VLOOKUP(V33,Convenciones!$I$3:$K$6,3,0)","v":{"$error":"#N/A"}}]
[null,25,null,null,null,null,null,null,null,null,null,null,0,null,null,null,null,null,null,null,0," ",{"$f":"VLOOKUP(V34,Convenciones!$I$3:$K$6,2,0)","v":{"$error":"#N/A"}},{"$f":"VLOOKUP(V34,Convenciones!$I$3:$K$6,3,0)","v":{"$error":"#N/A"}}]
[null,26,null,null,null,null,null,null,null,null,null,null,0,null,null,null,null,null,null,null,0," ",{"$f":"VLOOKUP(V35,Convenciones!$I$3:$K$6,2,0)","v":{"$error":"#N/A"}},{"$f":"VLOOKUP(V35,Convenciones!$I$3:$K$6,3,0)","v":{"$error":"#N/A"}}]
[null,27,null,null,null,null,null,null,null,null,null,null,0,null,null,null,null,null,null,null,0," ",{"$f":"VLOOKUP(V36,Convenciones!$I$3:$K$6,2,0)","v":{"$error":"#N/A"}},{"$f":"VLOOKUP(V36,Convenciones!$I$3:$K$6,3,0)","v":{"$error":"#N/A"}}]
[null,28,null,null,null,null,null,null,null,null,null,null,0,null,null,null,null,null,null,null,0," ",{"$f":"VLOOKUP(V37,Convenciones!$I$3:$K$6,2,0)","v":{"$error":"#N/A"}},{"$f":"VLOOKUP(V37,Convenciones!$I$3:$K$6,3,0)","v":{"$error":"#N/A"}}]
[null,29,null,null,null,null,null,null,null,null,null,null,0,null,null,null,null,null,null,null,0," ",{"$f":"VLOOKUP(V38,Convenciones!$I$3:$K$6,2,0)","v":{"$error":"#N/A"}},{"$f":"VLOOKUP(V38,Convenciones!$I$3:$K$6,3,0)","v":{"$error":"#N/A"}}]
[null,null,null,null,null,null,null,null,null,null,null,null,{"$f":"IF(COUNTIF(J39:L39,\"X\")=3,\"Segunda Línea de Defensa\",IF(COUNTIF(J39:L39,\"X\")=2,\"Primera Línea de Defensa\",IF(COUNTIF(J39:L39,\"X\")=1,\"Primera Línea de Defensa\",)))","v":0}]
[null,"Nota: Si usted imprime este documento se considera “Copia No Controlada” por lo tanto debe consultar la versión vigente en el sitio oficial de los documentos"]

{"sheet":" Mapa de Asegu","index":2,"n_rows":29,"n_cols":8,"rows_kept":29,"cut":false,"hidden":false,"merged":[[28,1,28,7],[1,1,4,2],[1,3,1,6],[2,3,2,6],[3,3,3,6],[4,3,4,6],[7,6,8,6],[7,7,8,7],[6,6,6,7],[6,1,6,5],[7,1,8,1],[7,2,8,2],[7,3,8,3],[7,4,8,4],[7,5,8,5]]}
[]
[null,null,null,"Nombre del Procedimiento",null,null,null,"Código : EC-PR01-FT02"]
[null,null,null,"AUDITORIA INDEPENDIENTE",null,null,null,"Versión: 01"]
[null,null,null,"Nombre del Formato",null,null,null,"Vigencia : 10/03/2022"]
[null,null,null,"MAPA DE ASEGURAMIENTO",null,null,null,"Página 1 de 1"]
[]
[null,"MAPA DE ASEGURAMIENTO UAECOB",null,null,null,null,"Vigencia: XXXX"]
[null,"No. ","ASPECTO CLAVE DE ÉXITO\n(Programa, Proyecto, Proceso, Sistema, entre otros)","Riesgo asociado al aspecto clave de éxito","Responsable","Area Funcional","TERCERA LÍNEA DE DEFENSA\n(Oficina de Control Interno o quien haga sus veces) ","Rol de la Tercera Línea de Defensa"]
[]
[null,1]
[null,{"$f":"+B10+1","v":2}]
[null,{"$f":"+B11+1","v":3}]
[null,4]
[null,5]
[null,6]
[null,7]
[null,8]
[null,9]
[null,10]
[null,11]
[null,12]
[null,13]
[null,14]
[null,15]
[null,16]
[null,17]
[null,18]
[]
[null,"Nota: Si usted imprime este documento se considera “Copia No Controlada” por lo tanto debe consultar la versión vigente en el sitio oficial de los documentos"]

{"sheet":"Convenciones","index":3,"n_rows":25,"n_cols":11,"rows_kept":25,"cut":false,"hidden":false,"merged":[[7,9,7,14],[6,1,6,6],[13,1,13,6],[20,1,20,6],[8,8,9,8],[10,8,11,8],[8,9,9,14],[10,9,11,14],[12,9,12,14]]}
[]
[]
[null,null,null,null,null,null,null,null,"Bajo Aseguramiento","La Oficina de Control Interno deberá auditar y generar las alertas, recomendaciones y/o hallazgos a la 2ª línea de defensa para mejorar en la ejecución del aspecto clave de éxito.\nAsimismo evaluará los controles de 1ª línea de defensa.","Priorizar en su Plan Anual de Auditoría"]
[null,null,null,null,null,null,null,null,"Medio Aseguramiento","La Oficina de Control Interno deberá auditar y generar las alertas, recomendaciones y/o hallazgos a la 2ª línea de defensa para mejorar en la ejecución del aspecto clave de éxito.\nAsimismo evaluará los aspectos que considere relevantes de la 1ª línea de defensa.\n","Priorizar en su Plan Anual de Auditoría"]
[null,null,null,null,null,null,null,null,"Alto Aseguramiento","La Oficina de Control Interno confiará en los resultados del aseguramiento de la 2ª línea de defensa y basado en sus informes. De igual manera, auditará la efectividad de la ejecución del aspecto clave, evitando evaluar los controles de la 1ª línea de defensa.\n","No Priorizar en Plan Anual de Auditoría "]
[]
[null,"La Oficina de Control Interno confiará en los resultados del aseguramiento de la 2ª línea de defensa y basado en sus informes. De igual manera, auditará la efectividad de la ejecución del aspecto clave, evitando evaluar los controles de la 1ª línea de defensa.\n"]
[null,null,null,null,null,null,null,null," "," "]
[null,null,null,null,null,null,null,null,"Medio Aseguramiento","Priorizar en su Plan Anual de Auditoría"]
[]
[null,null,null,null,null,null,null,null,"Bajo Aseguramiento","Priorizar en su Plan Anual de Auditoría"]
[]
[null,null,null,null,null,null,null,null,"Alto Aseguramiento","No Priorizar en Plan Anual de Auditoría "]
[null,"La Oficina de Control Interno deberá auditar y generar las alertas, recomendaciones y/o hallazgos a la 2ª línea de defensa para mejorar en la ejecución del aspecto clave de éxito.\nAsimismo evaluará los aspectos que considere relevantes de la 1ª línea de defensa.\n",null,null,null,null,null,null," ","Criterios para la identificación de la segunda línea de defensa","CRITERIOS EVALUADORES DE LA FUNCIÓN DE ASEGURAMIENTO"]
[null,null,null,null,null,null,null,null,null,"SI",1]
[null,null,null,null,null,null,null,null,null,"NO",3]
[null,null,null,null,null,null,null,null,null,null,6]
[]
[]
[]
["Bajo Aseguramiento","La Oficina de Control Interno deberá auditar y generar las alertas, recomendaciones y/o hallazgos a la 2ª línea de defensa para mejorar en la ejecución del aspecto clave de éxito.\nAsimismo y evaluará los controles de 1ª línea de defensa."]
[]
[]
[]
["Bajo Aseguramiento","Priorizar en su Plan Anual de Auditoría"]